bitfinex-derivatives/quotes_ETHF0:USTF0_20260123
["timestamp","ask_amount","ask_price","bid_price","bid_amount"]
[1769166525660,0.31477966,2940.8,2939.5,0.00510812]
[1769166525852,0.32180974,2940.7,2939.5,0.00510812]
[1769166526053,0.17023,2940.8,2939.5,0.00510812]
[1769166526562,0.90162943,2940.7,2939.5,0.00510812]
[1769166526758,0.17023,2940.8,2939.5,0.00510812]
[1769166526957,0.90163376,2940.7,2939.5,0.00510812]
[1769166527158,0.17023,2940.8,2939.5,0.00510812]
[1769166527360,0.90175557,2940.7,2939.5,0.00510812]
[1769166527564,0.17023,2940.8,2939.5,0.00510812]
[1769166527760,1.22366736,2940.7,2939.5,0.00510812]
[1769166527960,0.17023,2940.8,2939.5,0.00510812]
[1769166528265,1.2237357,2940.7,2939.5,0.00510812]
[1769166528457,0.90180444,2940.6,2939.5,0.00510812]
[1769166528768,0.31477966,2940.8,2939.5,0.00510812]
[1769166528956,1.22389679,2940.7,2939.5,0.00510812]
[1769166529157,0.90192293,2940.6,2939.5,0.00510812]
[1769166529358,0.31477966,2940.8,2939.5,0.00510812]
[1769166529655,1.22406761,2940.7,2939.5,0.00510812]
[1769166529854,0.90204671,2940.6,2939.5,0.00510812]
[1769166530055,0.31477966,2940.8,2939.5,0.00510812]
[1769166530251,1.22419948,2940.7,2939.5,0.00510812]
[1769166530457,1.22419948,2940.6,2939.5,0.00510812]
[1769166530658,0.31477966,2940.8,2939.5,0.00510812]
[1769166530865,1.22425127,2940.7,2939.5,0.00510812]
[1769166531070,1.36880093,2940.6,2939.5,0.00510812]
[1769166531256,0.14454966,2940.6,2939.5,0.00510812]
[1769166534656,1.39540354,2940.5,2939.5,0.00510812]
[1769166534861,1.22491123,2940.4,2939.5,0.00510812]
[1769166535160,6.498,2941.4,2938.6,3.05606162]
[1769166535161,0.31481966,2940.1,2938.6,3.05606162]
[1769166535359,1.36966686,2940.0,2938.6,0.00284235]
[1769166535558,1.2251172,2939.9,2938.6,0.00284235]
[1769166535763,0.14454966,2940.0,2938.6,0.00284235]
[1769166535959,1.2251957,2939.9,2938.6,0.00284235]
[1769166536160,0.14454966,2940.0,2938.6,0.00284235]
[1769166536363,1.22506903,2939.9,2938.6,0.00284235]
[1769166536563,0.14454966,2940.0,2938.6,0.00284235]
[1769166536765,0.32225042,2939.9,2938.6,0.00284235]
[1769166536966,0.14454966,2940.0,2938.6,0.00284235]
[1769166537264,0.32225044,2939.9,2938.6,0.00284235]
[1769166537470,0.14454966,2940.0,2938.6,0.00284235]
[1769166538471,0.17027,2940.1,2938.6,0.00284235]
[1769166538666,1.22417516,2940.0,2938.6,0.00284235]
[1769166538871,0.17027,2940.1,2938.6,0.00284235]
[1769166539066,0.32203776,2940.0,2938.6,0.00284235]
[1769166539271,0.17027,2940.1,2938.6,0.00284235]
[1769166539472,0.32195032,2940.0,2938.6,0.00284235]
[1769166539672,0.17027,2940.1,2938.6,0.00284235]
[1769166540274,0.90199774,2940.0,2938.6,0.00284235]
[1769166540475,0.17027,2940.1,2938.6,0.00284235]
[1769166540673,1.22401755,2940.0,2938.6,0.00284235]
[1769166540870,0.17027,2940.1,2938.6,0.00284235]
[1769166541076,0.00510812,2940.3,2938.6,0.00284235]
[1769166541077,0.31483966,2939.8,2938.6,0.00284235]
[1769166541377,1.39434239,2939.7,2938.6,0.00284235]
[1769166541568,0.17029,2939.7,2938.6,0.00284235]
[1769166541770,1.53834868,2939.6,2938.6,0.00284235]
[1769166542069,0.45408759,2939.5,2938.6,0.00284235]
[1769166542376,0.13218575,2939.5,2938.6,0.00284235]
[1769166544370,0.30249575,2939.5,2937.7,0.13931178]
[1769166544577,0.13218575,2939.4,2937.7,0.13931178]
[1769166545574,0.1365166,2939.4,2937.7,0.14265424]
[1769166546274,0.15087926,2939.3,2937.7,0.14265424]
[1769166546578,0.15087926,2939.2,2937.7,0.14265424]
[1769166546875,0.32120926,2939.1,2937.7,0.00334246]
[1769166547073,0.00510812,2938.7,2937.7,0.00334246]
[1769166547469,0.17545812,2938.7,2937.7,0.00334246]
[1769166549174,0.17545812,2938.7,2936.9,0.14765196]
[1769166549175,0.17036,2938.5,2936.9,0.14765196]
[1769166550268,0.17036,2938.5,2936.9,0.15181341]
[1769166553079,0.17036,2938.5,2937.1,0.14765196]
[1769166556982,0.17037,2938.4,2937.1,0.14765196]
[1769166557185,0.17037,2938.3,2936.9,0.00416145]
[1769166557385,0.17039,2938.1,2936.9,0.00416145]
[1769166559890,0.00510812,2938.7,2937.7,1.05549027]
[1769166560089,0.00510812,2938.7,2937.7,0.14765196]
[1769166560691,0.15598738,2938.7,2936.9,1.05965172]
[1769166560990,0.15598738,2938.7,2936.9,0.15181341]
[1769166561780,0.17036,2938.6,2936.9,0.15181341]
[1769166565095,0.90232351,2938.5,2936.9,0.15181341]
[1769166565295,0.17036,2938.6,2936.9,0.15181341]
[1769166565497,0.90237365,2938.5,2936.9,0.15181341]
[1769166565696,0.17036,2938.6,2936.9,0.15181341]
[1769166565995,0.90237539,2938.5,2936.9,0.15181341]
[1769166566193,0.17036,2938.6,2936.9,0.15181341]
[1769166566395,0.90268119,2938.5,2936.9,0.15181341]
[1769166566593,0.90272987,2938.4,2936.9,0.15181341]
[1769166566794,0.90272987,2938.3,2936.9,0.15181341]
[1769166566993,0.17036,2938.6,2936.9,0.15181341]
[1769166567191,0.90273248,2938.5,2936.9,0.15181341]
[1769166567392,0.90273248,2938.4,2936.9,0.15181341]
[1769166567591,0.90273248,2938.3,2936.9,0.15181341]
[1769166567888,0.90273248,2938.2,2936.9,0.15181341]
[1769166568095,0.17036,2938.6,2936.9,0.15181341]
[1769166568287,0.90359575,2938.5,2936.9,0.15181341]
[1769166568488,0.90359575,2938.4,2936.9,0.15181341]
[1769166568788,0.90359575,2938.3,2936.9,0.15181341]
[1769166568987,0.90359575,2938.2,2936.9,0.15181341]
[1769166569194,0.90359575,2938.1,2936.9,0.15181341]
[1769166569496,0.17036,2938.6,2936.9,0.15181341]
[1769166569691,1.22626211,2938.5,2936.9,0.15181341]
[1769166569991,0.90427257,2938.4,2936.9,0.15181341]
[1769166570295,0.90427257,2938.3,2936.9,0.15181341]
[1769166570489,0.90427257,2938.2,2936.9,0.15181341]
[1769166570692,0.90427257,2938.1,2936.9,0.15181341]
[1769166570889,0.17036,2938.6,2936.9,0.15181341]
[1769166571089,1.22631019,2938.5,2936.9,0.15181341]
[1769166571294,1.22642726,2938.4,2936.9,0.15181341]
[1769166571491,0.90430859,2938.3,2936.9,0.15181341]
[1769166571690,0.90430859,2938.2,2936.9,0.15181341]
[1769166571891,0.90430859,2938.1,2936.9,0.15181341]
[1769166572092,0.17036,2938.6,2936.9,0.15181341]
[1769166572296,1.54632089,2938.5,2936.9,0.15181341]
[1769166572500,1.22686345,2938.4,2936.9,0.15181341]
[1769166572794,0.90471557,2938.3,2936.9,0.15181341]
[1769166572995,0.90471557,2938.2,2936.9,0.15181341]
[1769166573200,0.90471557,2938.1,2936.9,0.15181341]
[1769166573393,0.90471557,2938.0,2936.9,0.15181341]
[1769166573699,0.31945744,2938.5,2936.9,0.15181341]
[1769166573999,1.22781937,2938.4,2936.9,0.15181341]
[1769166574191,1.22781937,2938.3,2936.9,0.15181341]
[1769166574392,0.90542065,2938.2,2936.9,0.15181341]
[1769166574690,0.90542065,2938.1,2936.9,0.15181341]
[1769166574890,0.90542065,2938.0,2936.9,0.15181341]
[1769166575092,0.31945744,2938.5,2936.9,0.15181341]
[1769166575394,1.22841902,2938.4,2936.9,0.15181341]
[1769166575594,1.22841902,2938.3,2936.9,0.15181341]
[1769166575796,1.22841902,2938.2,2936.9,0.15181341]
[1769166575994,0.90586297,2938.1,2936.9,0.15181341]
[1769166576189,0.90586297,2938.0,2936.9,0.15181341]
[1769166576395,0.90586297,2937.9,2936.9,0.15181341]
[1769166576598,0.17038,2938.2,2936.9,0.15181341]
[1769166576799,1.22996324,2938.1,2936.9,0.15181341]
[1769166576999,0.90700191,2938.0,2936.9,0.15181341]
[1769166577200,0.17038,2938.2,2936.9,0.15181341]
[1769166577401,1.22996334,2938.1,2936.9,0.15181341]
[1769166577697,0.90700196,2938.0,2936.9,0.15181341]
[1769166577897,0.17038,2938.2,2936.9,0.15181341]
[1769166578098,1.23012396,2938.1,2936.9,0.15181341]
[1769166578299,0.90712048,2938.0,2936.9,0.15181341]
[1769166578499,0.17038,2938.2,2936.9,0.15181341]
[1769166578701,1.23029538,2938.1,2936.9,0.15181341]
[1769166579001,0.90724718,2938.0,2936.9,0.15181341]
[1769166579204,0.17038,2938.2,2936.9,0.15181341]
[1769166579402,1.23029545,2938.1,2936.9,0.00416145]
[1769166579602,0.90724723,2938.0,2936.9,0.00416145]
[1769166579802,0.17038,2938.2,2936.9,0.00416145]
[1769166580101,1.23029342,2938.1,2936.9,0.00416145]
[1769166580300,1.23029342,2938.0,2936.9,0.15342955]
[1769166580501,0.17038,2938.2,2936.9,0.15342955]
[1769166580702,1.23030186,2938.1,2936.9,0.15342955]
[1769166580904,1.23030186,2938.0,2936.9,0.15342955]
[1769166581094,0.17038,2938.2,2936.9,0.15342955]
[1769166581297,0.32304978,2938.1,2936.9,0.15342955]
[1769166581495,1.23031076,2938.0,2936.9,0.15342955]
[1769166581696,0.17038,2938.2,2936.9,0.15342955]
[1769166581898,1.23031375,2938.1,2936.9,0.15342955]
[1769166582098,1.23031375,2938.0,2936.9,0.15342955]
[1769166582403,0.17038,2938.2,2936.9,0.15342955]
[1769166582603,1.23032874,2938.1,2936.9,0.15342955]
[1769166582800,0.90727216,2938.0,2936.9,0.15342955]
[1769166583007,0.15420556,2938.7,2937.2,0.1492681]
[1769166583202,1.23021887,2938.6,2937.2,0.1492681]
[1769166583401,1.23021887,2938.5,2937.2,0.1492681]
[1769166583600,1.23021887,2938.4,2937.2,0.1492681]
[1769166583802,1.23021887,2938.3,2937.2,0.1492681]
[1769166584105,1.23021887,2938.2,2937.2,0.1492681]
[1769166584294,0.32455556,2938.7,2937.2,0.1492681]
[1769166584499,1.23023863,2938.6,2937.2,0.1492681]
[1769166584704,1.23023863,2938.5,2937.2,0.1492681]
[1769166584906,1.23023863,2938.4,2937.2,0.1492681]
[1769166585205,1.23023863,2938.3,2937.2,0.1492681]
[1769166585405,1.23023863,2938.2,2937.2,0.1492681]
[1769166585606,0.32455556,2938.7,2937.2,0.1492681]
[1769166585905,1.23021795,2938.6,2937.2,0.1492681]
[1769166586205,1.23021795,2938.5,2937.2,0.1492681]
[1769166586405,1.23021795,2938.4,2937.2,0.1492681]
[1769166586596,1.23021795,2938.3,2937.2,0.1492681]
[1769166586800,1.23021795,2938.2,2937.2,0.1492681]
[1769166587000,0.32455556,2938.7,2937.2,0.1492681]
[1769166587295,1.23022088,2938.6,2937.2,0.1492681]
[1769166587604,1.23022088,2938.5,2937.2,0.1492681]
[1769166587912,1.23022088,2938.4,2937.2,0.1492681]
[1769166588206,1.23022088,2938.3,2937.2,0.1492681]
[1769166588402,1.23022088,2938.2,2937.2,0.1492681]
[1769166588606,0.3230775,2938.1,2937.2,0.1492681]
[1769166588812,0.32455556,2938.7,2937.2,0.1492681]
[1769166589001,1.23041221,2938.6,2937.2,0.1492681]
[1769166589195,1.23041221,2938.5,2937.2,0.1492681]
[1769166589400,1.23041221,2938.4,2937.2,0.1492681]
[1769166589603,1.23041221,2938.3,2937.2,0.1492681]
[1769166589803,1.23041221,2938.2,2937.2,0.1492681]
[1769166590007,0.32455556,2938.7,2937.2,0.1492681]
[1769166590204,1.2305938,2938.6,2937.2,0.1492681]
[1769166590406,1.2305938,2938.5,2937.2,0.1492681]
[1769166590605,1.2305938,2938.4,2937.2,0.1492681]
[1769166590901,1.2305938,2938.3,2937.2,0.1492681]
[1769166591105,1.2305938,2938.2,2937.2,0.1492681]
[1769166591304,1.2305938,2938.1,2937.2,0.1492681]
[1769166591504,0.32455556,2938.7,2937.2,0.1492681]
[1769166591704,1.23121165,2938.6,2937.2,0.1492681]
[1769166592004,1.23121165,2938.5,2937.2,0.1492681]
[1769166592304,1.23121165,2938.4,2937.2,0.1492681]
[1769166592508,0.00510812,2938.7,2937.5,0.1492681]
[1769166592811,1.2308885,2938.6,2937.5,0.1492681]
[1769166593010,0.00510812,2938.7,2937.5,0.1492681]
[1769166593209,1.23085977,2938.6,2937.5,0.1492681]
[1769166593410,0.00510812,2938.7,2937.5,0.1492681]
[1769166593611,1.23030975,2938.6,2937.5,0.1492681]
[1769166593912,0.00510812,2938.7,2937.5,0.1492681]
[1769166594099,0.32305659,2938.6,2937.5,0.1492681]
[1769166594301,0.00510812,2938.7,2937.5,0.1492681]
[1769166601010,0.00510812,2938.7,2937.3,3.408]
[1769166601317,0.00510812,2938.7,2937.3,3.5572681]
[1769166601516,0.00510812,2938.7,2937.4,0.1492681]
[1769166603416,0.00510812,2938.7,2937.4,1.05722954]
[1769166604019,0.00510812,2938.7,2937.5,0.14451869]
[1769166612920,0.00510812,2938.7,2937.7,0.90762442]
[1769166616526,0.90572271,2938.6,2937.7,0.90762442]
[1769166616727,0.00510812,2938.7,2937.7,0.90762442]
[1769166616928,0.90572271,2938.6,2937.5,0.14451869]
[1769166617227,0.90577803,2938.5,2937.5,0.14451869]
[1769166617425,0.00510812,2938.7,2937.5,0.14451869]
[1769166617624,0.90590782,2938.6,2937.5,0.14451869]
[1769166617828,0.90590782,2938.5,2937.5,0.14451869]
[1769166618122,0.00510812,2938.7,2937.5,0.14451869]
[1769166618323,1.2287744,2938.6,2937.5,0.14451869]
[1769166618522,0.90589207,2938.5,2937.5,0.14451869]
[1769166618726,0.00510812,2938.7,2937.5,0.14451869]
[1769166618921,1.2289343,2938.6,2937.5,0.14451869]
[1769166619121,0.90605195,2938.5,2937.5,0.14451869]
[1769166619322,0.00510812,2938.7,2937.5,0.14451869]
[1769166619531,1.22920614,2938.6,2937.7,0.90762442]
[1769166619721,0.90625383,2938.5,2937.7,0.90762442]
[1769166619921,0.00510812,2938.7,2937.7,0.90762442]
[1769166620120,1.22917983,2938.6,2937.7,0.90762442]
[1769166620419,1.22917983,2938.5,2937.7,0.90762442]
[1769166620615,0.00510812,2938.7,2937.7,0.90762442]
[1769166620818,1.22952816,2938.6,2937.7,0.90762442]
[1769166621027,1.22952816,2938.5,2937.7,0.90762442]
[1769166621220,0.00510812,2938.7,2937.7,0.90762442]
[1769166621417,1.22954441,2938.6,2937.7,0.90762442]
[1769166621622,1.22954441,2938.5,2937.7,0.90762442]
[1769166621832,1.22954441,2938.4,2938.1,0.13986933]
[1769166622128,0.00510812,2938.7,2938.0,0.90762442]
[1769166622316,0.90687568,2938.6,2938.0,0.90762442]
[1769166622519,0.90687568,2938.5,2938.0,0.90762442]
[1769166622730,0.00510812,2938.7,2938.0,0.90762442]
[1769166622931,0.90703232,2938.6,2938.0,0.90762442]
[1769166623130,0.90703232,2938.5,2938.0,0.90762442]
[1769166623329,0.00510812,2938.7,2938.0,0.90762442]
[1769166623536,0.90700459,2938.6,2938.0,0.90762442]
[1769166623830,0.90700459,2938.5,2938.0,0.90762442]
[1769166624025,0.00510812,2938.7,2938.0,0.90762442]
[1769166624330,0.90700608,2938.6,2938.0,0.90762442]
[1769166624529,0.90700608,2938.5,2938.0,0.90762442]
[1769166624732,0.00510812,2938.7,2938.0,0.90762442]
[1769166625030,0.90458767,2938.6,2938.0,0.90762442]
[1769166625232,0.90458767,2938.5,2938.0,0.90762442]
[1769166625425,0.00510812,2938.7,2938.0,0.90762442]
[1769166625623,0.90457408,2938.6,2938.0,0.90762442]
[1769166625820,0.90457408,2938.5,2938.0,0.90762442]
[1769166626124,0.00510812,2938.7,2938.0,0.90762442]
[1769166626325,0.90457441,2938.6,2937.7,0.90762442]
[1769166626527,0.00510812,2938.7,2937.7,0.90762442]
[1769166628533,0.17033,2939.0,2937.7,0.90762442]
[1769166628736,0.1523441,2940.5,2938.9,0.90762442]
[1769166629038,0.1523441,2940.3,2939.2,0.90762442]
[1769166629331,0.14945429,2940.7,2939.5,0.90762442]
[1769166629532,0.17022,2941.1,2939.2,2.91962442]
[1769166629533,0.31967429,2941.1,2939.8,0.90762442]
[1769166629838,0.00285155,2940.7,2939.8,0.90762442]
[1769166630032,0.00285155,2940.7,2939.8,0.91273254]
[1769166630331,0.00285155,2940.7,2940.1,0.90762442]
[1769166630534,3.05290455,2940.7,2940.1,0.90762442]
[1769166630835,3.05290455,2940.7,2939.8,0.00510812]
[1769166630836,3.050053,2940.4,2939.8,0.91273254]
[1769166631036,3.050053,2940.6,2939.8,0.91273254]
[1769166631435,3.050053,2940.5,2939.8,0.91273254]
[1769166631639,3.050053,2940.6,2939.8,0.91273254]
[1769166631936,3.050053,2940.5,2939.8,0.91273254]
[1769166632138,3.050053,2940.6,2939.8,0.91273254]
[1769166632532,3.050053,2940.5,2939.8,0.91273254]
[1769166632835,3.050053,2940.6,2939.8,0.91273254]
[1769166633240,3.050053,2940.5,2939.8,0.00510812]
[1769166633734,0.15382057,2940.7,2939.8,0.00510812]
[1769166634037,0.15096902,2940.2,2939.8,0.00202457]
[1769166634233,0.15096902,2940.2,2939.5,0.00418681]
[1769166634435,3.20102202,2940.2,2939.5,0.00418681]
[1769166635835,0.15096902,2940.2,2939.5,0.00418681]
[1769166636038,3.050053,2940.1,2939.5,0.00418681]
[1769166636339,3.050053,2940.1,2939.2,0.90762442]
[1769166636540,0.15096902,2940.2,2939.2,0.90762442]
[1769166637344,0.15096902,2940.2,2939.2,0.91120433]
[1769166639440,0.00510812,2940.4,2939.5,0.90762442]
[1769166639640,3.05516112,2940.4,2939.5,0.90762442]
[1769166639841,3.050053,2940.2,2939.5,0.90762442]
[1769166640242,3.050053,2940.1,2939.5,0.90762442]
[1769166640544,3.050053,2940.2,2939.5,0.90762442]
[1769166641142,3.050053,2940.1,2939.5,0.90762442]
[1769166641342,3.050053,2940.2,2939.5,0.90762442]
[1769166641843,3.050053,2940.1,2939.5,0.90762442]
[1769166642144,3.050053,2940.2,2939.5,0.90762442]
[1769166643047,3.050053,2940.1,2939.5,0.90762442]
[1769166643249,3.050053,2940.2,2939.5,0.90762442]
[1769166643650,3.050053,2940.1,2939.5,0.90762442]
[1769166643844,3.050053,2940.2,2939.5,0.90762442]
[1769166644343,3.050053,2940.1,2939.5,0.90762442]
[1769166644648,3.050053,2940.2,2939.5,0.90762442]
[1769166645248,3.050053,2940.1,2939.5,0.90762442]
[1769166645442,3.050053,2940.2,2939.5,0.90762442]
[1769166645842,3.050053,2940.1,2939.5,0.90762442]
[1769166646043,3.050053,2940.2,2939.5,0.90762442]
[1769166646447,3.050053,2940.1,2939.5,0.90762442]
[1769166646748,3.050053,2940.2,2939.5,0.90762442]
[1769166647149,3.050053,2940.1,2939.5,0.90762442]
[1769166647352,3.050053,2940.2,2939.5,0.90762442]
[1769166647752,3.050053,2940.1,2939.5,0.90762442]
[1769166647953,3.050053,2940.2,2939.5,0.90762442]
[1769166648451,3.050053,2940.1,2939.5,0.90762442]
[1769166648655,3.050053,2940.2,2939.5,0.90762442]
[1769166649155,3.050053,2940.1,2939.5,0.90762442]
[1769166649455,3.050053,2940.2,2939.5,0.90762442]
[1769166650148,3.050053,2940.1,2939.5,0.90762442]
[1769166650349,3.050053,2940.2,2939.5,0.90762442]
[1769166650957,0.00285155,2940.7,2939.8,0.90762442]
[1769166651343,3.050053,2940.4,2939.8,0.90762442]
[1769166651746,3.050053,2940.3,2939.8,0.90762442]
[1769166651944,3.050053,2940.4,2939.8,0.90762442]
[1769166652456,3.050053,2940.3,2939.8,0.91273254]
[1769166652654,3.050053,2940.4,2939.8,0.91273254]
[1769166653153,3.050053,2940.3,2939.8,0.91273254]
[1769166653455,3.050053,2940.4,2939.8,0.91273254]
[1769166653858,3.050053,2940.2,2939.8,0.91273254]
[1769166654156,3.050053,2940.4,2939.8,0.91273254]
[1769166654550,3.050053,2940.2,2939.8,0.91273254]
[1769166654849,3.050053,2940.1,2939.8,0.91273254]
[1769166655051,3.050053,2940.4,2939.8,0.91273254]
[1769166655250,3.050053,2940.1,2939.2,7.32720433]
[1769166655453,0.00510812,2940.2,2939.2,7.32720433]
[1769166655754,3.05516112,2940.2,2939.2,7.32720433]
[1769166655957,3.050053,2940.1,2939.2,0.91120433]
[1769166656859,3.050053,2940.1,2939.5,0.90762442]
[1769166657261,3.050053,2939.9,2939.5,0.90762442]
[1769166657559,3.050053,2940.0,2939.5,0.90762442]
[1769166657960,3.050053,2939.9,2939.5,0.90762442]
[1769166658161,3.050053,2940.0,2939.4,0.90762442]
[1769166658357,3.05516112,2940.2,2939.7,0.90762442]
[1769166658753,3.050053,2939.9,2939.7,0.90762442]
[1769166658957,0.00510812,2940.2,2939.7,0.90762442]
[1769166662652,0.00510812,2940.2,2939.4,0.90762442]
[1769166662858,0.00510812,2940.2,2939.2,6.35320452]
[1769166664161,0.00510812,2940.2,2939.2,2.43820452]
[1769166664362,0.15088175,2940.0,2939.2,0.00357991]
[1769166665267,0.15088175,2940.0,2938.8,0.90762442]
[1769166666164,0.15088175,2940.0,2938.8,0.91017753]
[1769166674881,0.15088175,2940.0,2938.8,0.00255311]
[1769166679478,0.4353152,2939.9,2938.8,0.00255311]
[1769166679675,0.14177238,2939.9,2938.8,0.00255311]
[1769166681275,0.14177238,2939.9,2937.9,2.60502461]
[1769166681276,0.14200472,2939.7,2937.9,2.60502461]
[1769166681480,0.14200472,2939.5,2937.9,2.60502461]
[1769166681873,0.1703,2939.6,2938.2,0.01957937]
[1769166682380,0.1703,2939.6,2938.2,0.02213034]
[1769166682978,0.31246585,2939.6,2938.2,0.02213034]
[1769166683474,0.31246585,2939.6,2938.2,0.00255097]
[1769166683475,0.14216585,2939.5,2938.2,0.00255097]
[1769166684981,0.1424246,2939.3,2938.2,0.00255097]
[1769166688582,0.3127446,2939.3,2938.2,0.00255097]
[1769166688782,0.14357817,2939.2,2938.2,0.00255097]
[1769166695187,0.17032,2939.3,2938.2,0.00255097]
[1769166696082,0.14677154,2940.0,2938.5,0.9090644]
[1769166700189,0.14677154,2940.0,2938.6,0.00353233]
[1769166702381,0.14677154,2940.0,2938.3,2.60499461]
[1769166702585,0.14677154,2939.8,2938.3,2.43462461]
[1769166702783,0.14677154,2939.8,2938.2,0.00255097]
[1769166703091,0.14677154,2939.6,2938.2,0.00255097]
[1769166708802,0.14677154,2939.4,2938.2,0.00255097]
[1769166717813,0.1425,2939.6,2938.5,0.90701342]
[1769166720419,0.1425,2939.6,2938.6,0.00299424]
[1769166720720,0.15187966,2940.2,2938.9,0.90701342]
[1769166721715,0.15187966,2940.2,2938.6,0.00299424]
[1769166723017,0.14296196,2940.0,2938.4,2.43462461]
[1769166723211,0.14296196,2939.8,2938.2,0.00255097]
[1769166723411,0.14296196,2939.6,2938.2,0.00255097]
[1769166726224,0.14434027,2939.4,2938.2,0.00255097]
[1769166732926,0.1417548,2939.2,2938.2,0.00255097]
[1769166736930,0.1417548,2939.2,2938.2,0.90987215]
[1769166739434,0.17031,2939.5,2938.5,0.90732118]
[1769166739932,0.14196177,2939.6,2938.5,0.90732118]
[1769166740133,1.16806766,2939.5,2938.5,0.90732118]
[1769166740330,0.14196177,2939.6,2938.5,0.90732118]
[1769166740530,1.16808418,2939.5,2938.5,0.90732118]
[1769166740736,0.14196177,2939.6,2938.5,0.90732118]
[1769166740936,1.16808407,2939.5,2938.5,0.90732118]
[1769166741135,0.14196177,2939.6,2938.5,0.90732118]
[1769166741336,0.29393748,2939.5,2938.5,0.90732118]
[1769166741530,0.14196177,2939.6,2938.5,0.90732118]
[1769166741729,0.29393748,2939.5,2938.5,0.90732118]
[1769166741930,0.14196177,2939.6,2938.5,0.90732118]
[1769166742131,0.29393748,2939.5,2938.5,0.90732118]
[1769166742331,0.14196177,2939.6,2938.5,0.90732118]
[1769166742527,0.29394009,2939.5,2938.5,0.90732118]
[1769166742738,0.14196177,2939.6,2938.5,0.90732118]
[1769166742939,0.29394009,2939.5,2938.5,0.90732118]
[1769166743140,0.14196177,2939.6,2938.5,0.90732118]
[1769166743339,0.29394015,2939.5,2938.5,0.90732118]
[1769166743541,0.14196177,2939.6,2938.5,0.90732118]
[1769166743740,0.29394443,2939.5,2938.5,0.90732118]
[1769166744041,0.14196177,2939.6,2938.5,0.90732118]
[1769166744435,0.2939368,2939.5,2938.5,0.90732118]
[1769166744636,0.14196177,2939.6,2938.5,0.90732118]
[1769166744841,0.29394712,2939.5,2938.5,0.90732118]
[1769166745136,0.14196177,2939.6,2938.5,0.90732118]
[1769166747043,0.31112305,2939.9,2938.5,0.90732118]
[1769166747245,1.30915527,2939.8,2938.5,0.90732118]
[1769166747445,1.16831222,2939.7,2938.5,0.90732118]
[1769166747640,1.16831222,2939.6,2938.5,0.90732118]
[1769166747840,0.14084305,2939.8,2938.5,0.90732118]
[1769166748040,1.16831806,2939.7,2938.5,0.90732118]
[1769166748238,1.16831806,2939.6,2938.5,0.90732118]
[1769166748438,0.14084305,2939.8,2938.5,0.90732118]
[1769166748739,1.16836669,2939.7,2938.5,0.90732118]
[1769166748939,1.16836716,2939.6,2938.5,0.90732118]
[1769166749140,0.14084305,2939.8,2938.5,0.90732118]
[1769166749449,1.16839796,2939.7,2938.5,0.90732118]
[1769166749640,1.16839796,2939.6,2938.5,0.90732118]
[1769166749834,0.14084305,2939.8,2938.5,0.90732118]
[1769166750040,1.30929661,2939.7,2938.5,0.90732118]
[1769166750235,1.16843608,2939.6,2938.5,0.90732118]
[1769166750435,0.14086053,2939.7,2938.5,0.90732118]
[1769166750647,1.16847539,2939.6,2938.5,0.90732118]
[1769166750948,0.14086053,2939.7,2938.5,0.90732118]
[1769166751139,1.16847569,2939.6,2938.5,0.90732118]
[1769166751340,1.16880715,2939.5,2938.5,0.90732118]
[1769166751540,0.14108675,2939.5,2938.5,0.90732118]
[1769166752441,0.294228,2939.4,2938.5,0.90732118]
[1769166752749,0.14108675,2939.5,2938.5,0.90732118]
[1769166752947,0.29423274,2939.4,2938.5,0.90732118]
[1769166753148,0.14108675,2939.5,2938.5,0.90732118]
[1769166753447,0.43618751,2939.4,2938.2,3.34449676]
[1769166753647,0.29425197,2939.3,2938.2,0.90987215]
[1769166753846,0.14195476,2939.3,2938.2,0.90987215]
[1769166756247,0.11614181,2939.3,2938.2,0.90987215]
[1769166756547,0.87527461,2939.2,2938.2,0.90987215]
[1769166756850,0.87527461,2939.1,2938.2,0.90987215]
[1769166757043,0.90732118,2939.4,2938.2,0.90987215]
[1769166757245,1.16952228,2939.3,2938.2,0.90987215]
[1769166757547,0.875275,2939.2,2938.2,0.90987215]
[1769166757745,0.875275,2939.1,2938.2,0.90987215]
[1769166757945,0.90732118,2939.4,2938.2,0.90987215]
[1769166758147,1.30763784,2939.3,2938.2,0.90987215]
[1769166758348,0.87526333,2939.2,2938.2,0.90987215]
[1769166758548,0.87526333,2939.1,2938.2,0.90987215]
[1769166758743,0.13813146,2939.3,2938.2,0.90987215]
[1769166758939,0.87525064,2939.2,2938.2,0.90987215]
[1769166759147,0.87525064,2939.1,2938.2,0.90987215]
[1769166759349,0.13813146,2939.3,2938.2,0.90987215]
[1769166759544,0.8752391,2939.2,2938.2,0.90987215]
[1769166759852,0.8752391,2939.1,2938.2,0.90987215]
[1769166760051,0.13813146,2939.3,2938.2,0.90987215]
[1769166760249,0.87523909,2939.2,2938.2,0.90987215]
[1769166760448,0.87523909,2939.1,2938.2,0.90987215]
[1769166760652,0.13813146,2939.3,2938.2,0.90987215]
[1769166760855,0.87523104,2939.2,2938.2,0.90987215]
[1769166761152,0.87523104,2939.1,2938.2,0.90987215]
[1769166761453,0.13813146,2939.2,2938.2,0.90987215]
[1769166761654,0.87522477,2939.1,2938.2,0.90987215]
[1769166761854,0.13813146,2939.2,2938.2,0.90987215]
[1769166762048,1.16944898,2939.1,2938.2,0.90987215]
[1769166762243,0.13813146,2939.2,2938.2,0.90987215]
[1769166762452,0.13813146,2939.0,2938.2,0.00255097]
[1769166762645,1.30759281,2938.9,2938.2,0.00255097]
[1769166762949,1.16946135,2938.8,2937.6,4.84432118]
[1769166763150,1.16946135,2938.7,2937.6,4.84432118]
[1769166763350,0.13813146,2938.9,2937.6,0.90732118]
[1769166763553,1.16928187,2938.8,2937.6,0.90732118]
[1769166763753,0.00510812,2938.4,2937.6,0.90732118]
[1769166764055,0.00907744,2938.4,2937.6,0.91065965]
[1769166766759,0.00907744,2938.4,2937.9,0.90732118]
[1769166767151,0.13813146,2938.9,2937.9,0.90732118]
[1769166767660,0.13813146,2938.9,2937.9,0.9124293]
[1769166768251,0.14219061,2938.9,2937.9,0.9124293]
[1769166773563,0.00405915,2938.9,2937.9,0.9124293]
[1769166780362,0.00405915,2938.9,2938.2,0.9368944]
[1769166780662,0.13813146,2939.9,2938.8,0.90732118]
[1769166780862,1.16958533,2939.8,2938.8,0.90732118]
[1769166781162,1.16958533,2939.7,2938.8,0.90732118]
[1769166781361,1.16958533,2939.6,2938.8,0.90732118]
[1769166781554,0.13813146,2939.9,2938.8,0.90732118]
[1769166781555,0.14134704,2939.9,2938.8,0.90732118]
[1769166781761,1.16956829,2939.8,2938.8,0.90732118]
[1769166782061,1.16956829,2939.7,2938.8,0.90732118]
[1769166782267,1.16956829,2939.6,2938.8,0.90732118]
[1769166782564,0.00321558,2939.9,2938.8,0.90732118]
[1769166782762,1.16871286,2939.8,2938.8,0.90732118]
[1769166782959,1.16871286,2939.7,2938.8,0.90732118]
[1769166783265,0.00321558,2939.9,2938.8,0.90732118]
[1769166783467,1.16856955,2939.8,2938.8,0.90732118]
[1769166783662,1.16856955,2939.7,2938.8,0.90732118]